Cogmind - Beta 14 @@@ ROGUE MODE // 2025.04.22 @ 09:15:43 Player: McSaucyNugget Result: Destroyed by D-53 Grenadier with Mini Grenade Launcher Performance ------------- Evolutions (0) 0 Regions Visited (2) 400 Robots Destroyed (19) 95 Value Destroyed (523) 523 Prototype IDs (0) 0 Alien Tech Used (0) 0 Bonus (0) 0 TOTAL SCORE: 1018 Bonus ------- None Cogmind --------- Core Integrity 0/250 Matter 213/300 Energy 100/100 System Corruption 0% Temperature Cool (0) Movement Rolling (130) Ox2 Location -10/Mines Parts ------- > --- POWER (1) -------- (None) > --- PROPULSION (2) --- Compact Wheel > --- UTILITY (2) ------ High-capacity Storage Unit Seismic Detector > --- WEAPON (2) ------- Assault Rifle Light Cannon > --- INVENTORY (20) --- Light Ion Engine Light Ion Engine Light Treads Light Treads Light Treads Light Treads Aluminum Leg Aluminum Leg Aluminum Leg Wheel Compact Wheel Heat Sink Weapon Shielding Medium Laser Particle Gun Light Assault Rifle Grenade Launcher Peak State ------------ > --- POWER ------------ Light Nuclear Core > --- PROPULSION ------- Light Treads Light Treads > --- UTILITY ---------- High-capacity Storage Unit Weapon Shielding > --- WEAPON ----------- Medium Laser Assault Rifle > --- INVENTORY -------- Light Ion Engine Wheel Compact Wheel Seismic Detector Particle Gun Assault Rifle Light Assault Rifle Light Cannon Grenade Launcher [Rating: 10] Favorites ----------- Power Light Nuclear Core Engine Light Ion Engine Power Core Light Nuclear Core Propulsion Light Treads Treads Light Treads Wheel Compact Wheel Utility Small Storage Unit Device Seismic Detector Storage Small Storage Unit Protection Weapon Shielding Weapon Assault Rifle Energy Gun Medium Laser Ballistic Gun Assault Rifle Ballistic Cannon Light Cannon Launcher Grenade Launcher Build | -11 -10 -10 ------- Run | Yrd Mat Min Slots Evolved . | . . . Power . | . . . Propulsion . | . . . Utility . | . . . Weapon . | . . . Parts Attached 23 | 8 10 5 Power 3 | 1 2 . Engine 2 | 1 1 . Core 1 | . 1 . Reactor . | . . . Propulsion 5 | 2 1 2 Treads 3 | 2 1 . Leg . | . . . Wheel 2 | . . 2 Hover . | . . . Flight . | . . . Utility 6 | 2 3 1 Device 2 | 1 . 1 Storage 2 | 1 1 . Processor . | . . . Hackware . | . . . Protection 2 | . 2 . Artifact . | . . . Weapon 9 | 3 4 2 Energy Gun 4 | 2 2 . Energy Cannon . | . . . Ballistic Gun 3 | 1 1 1 Ballistic Cannon 1 | . . 1 Launcher 1 | . 1 . Special Weapon . | . . . Impact Weapon . | . . . Slashing Weapon . | . . . Piercing Weapon . | . . . Special Melee Weapon . | . . . Unidentified Prototypes . | . . . Parts Lost 6 | . 3 3 Power 2 | . 1 1 Propulsion 1 | . . 1 Utility 1 | . 1 . Weapon 2 | . 1 1 Highest Loss Streak 2 | . 1 2 To Critical Strikes . | . . . Average Slot Usage (%) 97 | . 96 100 Engine 6 | . 4 14 Core 6 | . 8 . Treads 25 | . 28 16 Wheel 2 | . . 11 Device 3 | . 3 . Storage 14 | . 14 14 Protection 9 | . 7 13 Energy Gun 10 | . 13 2 Ballistic Gun 13 | . 14 12 Ballistic Cannon 3 | . . 13 Peak Build Rating 10 | 7 10 8 Average Rating 7 | 5 8 7 On Entrance 5 | . 7 8 Naked Turns . | . . . Heaviest Build 50 | 15 50 49 Greatest Support 40 | 40 40 40 Greatest Overweight (x) 1 | 1 1 1 Average Overweight (x) . | . . 1 Largest Inventory Capacity 20 | 8 20 20 Average Capacity 12 | 7 11 20 Most Carried 17 | 4 17 17 Average Carried 9 | 3 8 16 Final Capacity 20 | 8 20 20 Final Carried 17 | 4 17 17 Class Distribution -------------------- 100% | Mutant Dominant Class ---------------- Mutant | -10/Materials Mutant | -10/Mines Resources | -11 -10 -10 ----------- Run | Yrd Mat Min Matter Collected 549 | 220 253 76 Remotely . | . . . Salvage Created 674 | 25 537 112 Parts 35 | 4 28 3 Haulers Intercepted 2 | . 2 . Recyclers Shooed . | . . . Parts Field Recycled . | . . . Retrieved Matter . | . . . Parts Self-Destructed . | . . . Prevented . | . . . Kills | -11 -10 -10 ------- Run | Yrd Mat Min Combat Hostiles Destroyed 15 | . 12 3 Guns 6 | . 6 . Cannons 2 | . . 2 AOE 6 | . 6 . Classes Destroyed 6 | 1 3 2 Tunneler 1 | 1 . . Hauler 2 | . 2 . Recycler 1 | . . 1 Swarmer 3 | . 3 . Grunt 11 | . 9 2 Demolisher 1 | . . 1 Best Kill Streak 4 | 1 4 2 Combat Bots Only 4 | . 4 1 Max Kills in Single Turn 2 | 1 2 1 Gunslinging . | . . . Exploded 2 | . 2 . Melee . | . . . Uniques/NPCs Destroyed . | . . . Combat | -11 -10 -10 -------- Run | Yrd Mat Min Hostile Shots Fired 100 | . 67 33 Missed 27 | . 20 7 Damage Taken 1157 | . 618 539 Core 252 | . 89 163 Absorbed by Shields . | . . . Redirected to Shielding 23 | . 6 17 Core Remaining (%) 100 | 100 . . Volleys Fired 56 | 1 36 19 Largest 2 | 2 2 2 Hottest 85 | 60 70 85 Shots Fired 110 | 2 71 37 Gun 92 | 2 68 22 Cannon 15 | . . 15 Launcher 3 | . 3 . Special . | . . . Kinetic 63 | 1 36 26 Thermal 27 | . 16 11 Explosive 3 | . 3 . Electromagnetic 17 | 1 16 . Robot Hit Streak 9 | 2 9 9 Robot Miss Streak 4 | . 3 4 Penetration Max . | . . . Secondary Targets . | . . . Shots Hit Robots 72 | 2 44 26 Core Hits 32 | 1 26 5 Critical Kills . | . . . Critical Parts Destroyed . | . . . Critical Strikes 2 | . 1 1 Burn 2 | . 1 1 Melee Attacks . | . . . Impact . | . . . Slashing . | . . . Piercing . | . . . Sneak Attacks . | . . . Combat Hostiles . | . . . Follow-up Attacks . | . . . Damage Inflicted 1253 | 28 839 386 Guns 806 | 28 577 201 Cannons 185 | . . 185 Explosions 257 | . 257 . Melee . | . . . Ramming 5 | . 5 . Kinetic 573 | 15 261 297 Thermal 337 | . 248 89 Explosive 146 | . 146 . Electromagnetic 192 | 13 179 . Impact . | . . . Slashing . | . . . Piercing . | . . . Highest Corruption . | . . . Average Corruption . | . . . Corruption Purged . | . . . Corruption Blocked . | . . . Overload Shots . | . . . Overflow Damage 30 | . 30 . Projectiles . | . . . Explosions 30 | . 30 . Melee . | . . . Knockbacks 4 | . . 4 Impact . | . . . Kinetic 4 | . . 4 Secondary . | . . . Self-Inflicted Damage 57 | . 57 . Shots 2 | . 2 . Rammed 1 | . 1 . Targets Rammed 1 | . 1 . Kicked . | . . . Crushed . | . . . Highest Temperature 331 | . 198 331 Average Temperature 103 | . 73 182 Received Heat Transfer 462 | . 306 156 Effects 3 | . . 3 Energy Bleed 1 | . . 1 Interference 2 | . . 2 Siege Activations . | . . . Robots Corrupted . | . . . Combat Hostiles . | . . . Parts Fried . | . . . Impact Corruptions . | . . . Robots Melted 1 | . . 1 Combat Hostiles 1 | . . 1 Parts Melted 1 | . 1 . Heat Transferred 1064 | . 731 333 Parts Sabotaged . | . . . Parts Stolen . | . . . Parts Stripped . | . . . Power Chain Reactions 2 | . 2 . Alert | -11 -10 -10 ------- Run | Yrd Mat Min Peak Influence 371 | 5 371 121 Initial 66 | . 3 66 Average 141 | . 195 98 Maximum Alert Level 1 | . 1 . Low Security (%) 73 | 100 56 100 Level 1 26 | . 43 . Level 2 . | . . . Level 3 . | . . . Level 4 . | . . . Level 5 . | . . . High Security . | . . . Max Security . | . . . Squads Dispatched 3 | . 3 . Investigation 2 | . 2 . Extermination . | . . . Reinforcement 1 | . 1 . Assault . | . . . Garrison . | . . . Intercept . | . . . Searches Triggered . | . . . Construction Impeded . | . . . Haulers Reinforced . | . . . Active Scanning Responses . | . . . Cargo Convoy Interrupts . | . . . Stealth | -11 -10 -10 --------- Run | Yrd Mat Min Distress Signals 1 | . 1 . Communications Jammed . | . . . Distress Signals . | . . . Times Spotted 21 | . 17 4 Peak Tracking Total 6 | . 6 2 Tactical Retreats 1 | . 1 . Traps | -11 -10 -10 ------- Run | Yrd Mat Min Traps Triggered 2 | . 2 . Indirectly . | . . . Trap Hack Attempts . | . . . Triggered . | . . . Disarmed . | . . . Reprogrammed . | . . . Reused . | . . . Traps Extracted . | . . . Installed . | . . . Triggered . | . . . Machines | -11 -10 -10 ---------- Run | Yrd Mat Min Machines Disabled 1 | . 1 . Max in Single Turn 1 | . 1 . Machines Repaired . | . . . Machines Dismantled . | . . . Machines Sabotaged . | . . . Overloaded Fab Kills . | . . . Hacking | -11 -10 -10 --------- Run | Yrd Mat Min Machines Accessed 1 | . 1 . Terminals 1 | . 1 . Fabricators . | . . . Repair Stations . | . . . Recycling Units . | . . . Scanalyzers . | . . . Garrison Access . | . . . Total Hacks 1 | . 1 . Successful . | . . . Failed 1 | . 1 . Catastrophic 1 | . 1 . Database Lockouts . | . . . Manual . | . . . Terminals 1 | . 1 . Fabricators . | . . . Repair Stations . | . . . Recycling Units . | . . . Scanalyzers . | . . . Garrison Access . | . . . Terminal Hacks . | . . . Fabricator Hacks . | . . . Repair Station Hacks . | . . . Recycling Unit Hacks . | . . . Scanalyzer . | . . . Garrison Access Hacks . | . . . Unauthorized Hacks . | . . . Terminals . | . . . Fabricators . | . . . Repair Stations . | . . . Recycling Units . | . . . Scanalyzers . | . . . Garrison Access . | . . . Data Cores Recovered . | . . . Used . | . . . Hacking Detections 1 | . 1 . Full Trace Events . | . . . Feedback Events . | . . . Feedback Blocked . | . . . Robot Schematics Acquired . | . . . Robots Built . | . . . Authchips . | . . . Time . | . . . Total Robot Build Rating . | . . . Part Schematics Acquired . | . . . Parts Built . | . . . Authchips . | . . . Time . | . . . Total Part Build Rating . | . . . Parts Repaired . | . . . Time . | . . . Parts Recycled . | . . . Recycled Matter . | . . . Retrieved Matter . | . . . Retrieved Components . | . . . Parts Scanalyzed . | . . . Part Schematics Acquired . | . . . Parts Damaged . | . . . Bothacking | -11 -10 -10 ------------ Run | Yrd Mat Min Used RIF Installer . | . . . Robots Hacked . | . . . Non-combat . | . . . Combat . | . . . Robot Hacks Applied . | . . . Relay Couplers Released . | . . . Fabnet Peak Effective % . | . . . Robots Rewired . | . . . Allies Hacked . | . . . Hacks Repelled . | . . . Allies | -11 -10 -10 -------- Run | Yrd Mat Min Total Allies . | . . . Largest Group . | . . . Highest-Rated Group . | . . . Highest-Rated Ally . | . . . Total Orders . | . . . Ally Attacks . | . . . Total Damage . | . . . Kills . | . . . Allies Corrupted . | . . . Allies Melted . | . . . Intel | -11 -10 -10 ------- Run | Yrd Mat Min Robot Analysis Total . | . . . Derelict Logs Recovered 1 | . . 1 Drone Launches . | . . . Drone Recoveries . | . . . Exploration | -11 -10 -10 ------------- Run | Yrd Mat Min Turns Passed 717 | 123 439 155 Spaces Moved 286 | 71 159 56 Core 8 | 8 . . Treads 244 | 63 159 22 Legs . | . . . Wheels 34 | . . 34 Hover . | . . . Flight . | . . . Fastest Speed 50 | 50 160 115 Average Speed 168 | 148 178 164 Slowest Speed 240 | 160 240 240 Overloaded Moves . | . . . Propulsion Burnouts . | . . . Robots Hopped . | . . . Cave-ins Triggered . | . . . Exploration Rate (%) 18 | 4 38 12 Regions Visited 2 Branch Regions 1 Pre-discovered Areas 1 | . . 1 Known Exits Taken . | . . . Unknown Exits Taken 2 | 1 1 . Scrap Searched . | . . . Spaces Dug 5 | . 5 . Terrain Destroyed 17 | . 17 . Melee . | . . . Projectile . | . . . AOE 17 | . 17 . Terrain Rammed . | . . . Walls Destroyed . | . . . Machines Disabled . | . . . Actions | -11 -10 -10 --------- Run | Yrd Mat Min Total 404 | 83 240 81 Wait 21 | . 21 . Move 284 | 70 158 56 Hop . | . . . Pick Up 18 | 4 13 1 Fast Attach 8 | 7 1 . Attach 3 | . 2 1 Detach . | . . . Swap 12 | 1 7 4 Drop 1 | . 1 . Fire 56 | 1 36 19 Melee . | . . . Ram . | . . . Kick . | . . . Crush 1 | . 1 . Escape Stasis . | . . . Rewire . | . . . Trap . | . . . Miscellaneous . | . . . Route ------- -11/Scrapyard -10/Materials -10/Mines (discovered 1 exit: [*Mat]) History --------- Turn | Location | Event 6 | -11/Scrapyard | Discovered new exit (range 15) 124 | -11/Scrapyard | Entered Materials 316 | -10/Materials | Build established: Mutant 392 | -10/Materials | Discovered new exit (range 13) 563 | -10/Materials | Entered Mines 596 | -10/Mines | Core integrity fell below 50% 705 | -10/Mines | Assembled infested the area 710 | -10/Mines | Assisted by a Guerilla fighting off Assembled 710 | -10/Mines | Discovered new exit (range 9) 713 | -10/Mines | Core integrity fell below 20% 718 | -10/Mines | Destroyed by D-53 Grenadier with Mini Grenade Launcher Last Messages --------------- dispatching Demolisher response squad. 00705_ R-06 Scavenger destroyed. 00709_ K-01 Serf collects debris. 00710_ A derelict emerges from the shadows: "You need to get out of here! I've been tracking a group of Assembled to figure out where they're coming from, and they're closing on this area, come on!" 00710_ EXIT=FOUND 00710_ K-01 Serf destroyed. 00710_ Lgt. Ion Engine destroyed. 00710_ WO-4FL(h) destroyed. 00711_ A derelict emerges from the shadows: "Quick, help me dispose of these Unaware!" 00713_ Destroyed Shock Absorption System. 00714_ Com. Wheel destroyed. 00714_ D-53 Grenadier suffers critical hit (Burn). 00716_ D-53 Grenadier destroyed. 00717_ The unstable cave ceiling collapses. Map ----- +----------------------------------------------------+ | ?????????????????????????????????????????????????? | | ?????????????????????????????????????????????????? | | ?????????????????????????????????????????????????? | | ?????????????????????????????????????????????????? | | ?????????????????????????????????????????????????? | | ???????????????????????????????? #???????????????? | | ??????????????????????????????? ???????????????? | | ?????????????????????????#????? ????????????????? | | ?????????????????????????# """ ????????????????? | | ?????????????????????????# """ ?????????????????? | | ?????????????????????????# ?????????????????? | | ?????????????????????????? """ ??????????????????? | | ?????????????????????????? """ ??????????????????? | | ???????????????????????????"""???########????????? | | ??????????????????????????? ???# #????????? | | ???????????????????????????# #???# #### #????????? | | ???????????????????????????# #???# #??# #????????? | | ????????????????#####??????# #???# #??# #????????? | | ???????????????## #?????# #???# #??# #????????? | | ???????????????# ????# #???# #??# #????????? | | ???????????????# g ##### ##### #??# #????????? | | ???????????????# < # #?## #######??? | | ????????????????? #######?# #??? | | ???????????????????# %d #??????# #??? | | ???????????????????# #??????# #??? | | ????????????????????# @ #??????# #??? | | ????????????????????# = #??????# #??? | | ????????????????????# # #??????# #??? | | ????????????????????# ##??????# #??? | | ??????????????????? ##???????# #??? | | ??????????????????###########????????##########??? | | ?????????????????????????????????????????????????? | | ?????????????????????????????????????????????????? | | ?????????????????????????????????????????????????? | | ?????????????????????????????????????????????????? | | ?????????????????????????????????????????????????? | | ?????????????????????????????????????????????????? | | ?????????????????????????????????????????????????? | | ?????????????????????????????????????????????????? | | ?????????????????????????????????????????????????? | | ?????????????????????????????????????????????????? | | ?????????????????????????????????????????????????? | | ?????????????????????????????????????????????????? | | ?????????????????????????????????????????????????? | | ?????????????????????????????????????????????????? | | | | | | | | | | | +----------------------------------------------------+ Best States ------------- Heat Dissipation 25 Energy Generation 14 Energy Capacity 250 Matter Stores 300 Matter Capacity 300 Sight Range 16 Terrain Scan Density 10 Armor Coverage 150 Weapon Shielding 33 Evasion (%) 40 Recoil Reduction 2 Item Schematics ----------------- None Robot Schematics ------------------ None Fabricated ------------ Nothing Alien Tech Used ----------------- None Achievements -------------- None Challenges ------------ None Game ------ Seed FusionSpectralFirepult Manual? 0 Play Time 00:06:21 Cumulative 44.0 hours Start 2025.04.22 @ 09:10:24 End 2025.04.22 @ 09:15:43 Sessions 1 Manual Loads 0 Difficulty Rogue Special Mode None Game No. 38 Rogue 29 Adventurer 9 Explorer 0 Win Type - Total 1 Types 1/0/0/0/0/0/0/0/0 Lore% 18 Gallery% 36 Achievement% 34 Wizard Run 0 Options --------- Layout 2 ASCII 0 Keyboard 1 Movement Vi Keybinds 0 Fullscreen 2 Font 18/SmallcapsGlow Map View 50x49 Zoom Use 0% Tactical HUD 1 Map Filters NONE Filters NONE Steam X RUN: 6a32339c-fb7c-42ac-a3eb-6b82bdccbcb1